fUST/lending_fUST_20250926
["ID","MTS","AMOUNT","RATE_DAILY","PERIOD"]
[387733255,1758831043423,-480.0,0.00019187,2]
[387733256,1758831043432,-778.7117891,0.00019187,2]
[387733257,1758831043443,-231.2182109,0.00019187,2]
[387733258,1758831043452,-480.0,0.00019187,2]
[387733259,1758831043461,-480.0,0.00019187,2]
[387733260,1758831043471,-480.0,0.00019187,2]
[387733261,1758831043480,-220.3356277,0.00019187,2]
[387733262,1758831043508,-259.6643723,0.00019187,2]
[387733264,1758831043517,-194.24560827,0.00019187,2]
[387733265,1758831043528,-285.75439173,0.00019187,2]
[387733266,1758831043538,-480.0,0.00019187,2]
[387733267,1758831043547,-16.52560827,0.00019187,2]
[387733473,1758831045535,1000.0,0.00019,2]
[387733513,1758831045925,1657.955069,0.000185,2]
[387734644,1758831124364,302.51602579,0.000189,2]
[387734645,1758831177875,204.56164891,0.00018978,2]
[387734646,1758831204369,277.0,0.00029889,120]
[387734657,1758831726119,191.228567,0.00018185,2]
[387734789,1758832236812,-406.84464174,0.00019087,2]
[387734791,1758832236822,-500.0,0.00019175,2]
[387734793,1758832236833,-500.0,0.00019175,2]
[387734795,1758832236843,-500.0,0.00019175,2]
[387734797,1758832236852,-159.50572267,0.00019175,2]
[387734799,1758832236861,-616.38,0.00019177,3]
[387734801,1758832236870,-308.19,0.00019177,3]
[387734803,1758832236880,-154.1,0.00019177,3]
[387734805,1758832236889,-462.31,0.00019177,3]
[387734807,1758832236899,-477.20004353,0.0001918,2]
[387734809,1758832236908,-1200.0,0.0001918,2]
[387734811,1758832236918,-300.0,0.00019181,2]
[387734814,1758832236927,-300.0,0.00019181,2]
[387734817,1758832236937,-300.0,0.00019181,2]
[387734820,1758832236946,-300.0,0.00019181,2]
[387734823,1758832236956,-500.0,0.00019182,2]
[387734826,1758832236966,-198.25823302,0.00019182,2]
[387734829,1758832236975,-496.89196208,0.00019183,2]
[387734832,1758832236984,-480.0,0.00019183,2]
[387734835,1758832236994,-503.34632336,0.00019183,2]
[387734838,1758832237003,-500.0,0.00019183,2]
[387734841,1758832237012,-315.90467255,0.00019183,2]
[387734844,1758832237021,-191.24069322,0.00019183,2]
[387734847,1758832237031,-500.0,0.00019183,2]
[387734850,1758832237043,-500.0,0.00019183,2]
[387734853,1758832237052,-500.0,0.00019183,2]
[387734856,1758832237062,-500.0,0.00019183,2]
[387734858,1758832237071,-500.0,0.00019183,2]
[387734860,1758832237084,-500.0,0.00019183,2]
[387734862,1758832237094,-188.64914517,0.00019183,2]
[387734864,1758832237103,-500.0,0.00019183,2]
[387734867,1758832237113,-500.0,0.00019183,2]
[387734869,1758832237123,-500.0,0.00019183,2]
[387734870,1758832237132,-500.0,0.00019183,2]
[387734873,1758832237141,-472.61110585,0.00019183,2]
[387734875,1758832237157,-27.38889415,0.00019183,2]
[387734877,1758832237167,-500.0,0.00019183,2]
[387734879,1758832237176,-250.0,0.00019183,2]
[387734881,1758832237185,-274.08966819,0.00019183,2]
[387734981,1758832238343,-205.91033181,0.00019183,2]
[387734982,1758832238353,-2111.07904782,0.00019183,2]
[387734983,1758832238365,-137.87095218,0.00019183,2]
[387734984,1758832238375,-155.0,0.00019183,2]
[387734985,1758832238385,-480.0,0.00019183,2]
[387734986,1758832238394,-480.0,0.00019183,2]
[387734988,1758832238404,-480.0,0.00019183,2]
[387734989,1758832238413,-476.63675022,0.00019183,2]
[387734990,1758832238423,-895.85,0.00019183,2]
[387734992,1758832238432,-425.61398992,0.00019183,2]
[387734993,1758832238441,-480.0,0.00019183,2]
[387734994,1758832238451,-480.0,0.00019183,2]
[387734995,1758832238461,-480.0,0.00019183,2]
[387734996,1758832238470,-480.0,0.00019183,2]
[387734997,1758832238479,-480.0,0.00019183,2]
[387734998,1758832238489,-480.0,0.00019184,2]
[387734999,1758832238498,-480.0,0.00019184,2]
[387735000,1758832238507,-480.0,0.00019184,2]
[387735001,1758832238517,-480.0,0.00019184,2]
[387735002,1758832238527,-480.0,0.00019184,2]
[387735003,1758832238536,-467.21934548,0.00019184,2]
[387735004,1758832238545,-480.0,0.00019184,2]
[387735005,1758832238555,-480.0,0.00019184,2]
[387735006,1758832238564,-569.82293433,0.00019184,2]
[387735007,1758832238574,-480.0,0.00019184,2]
[387735008,1758832238586,-480.0,0.00019184,2]
[387735009,1758832238596,-360.09025149,0.00019184,2]
[387735010,1758832238605,-480.0,0.00019184,2]
[387735011,1758832238615,-480.0,0.00019184,2]
[387735012,1758832238624,-480.0,0.00019184,2]
[387735014,1758832238634,-480.0,0.00019184,2]
[387735016,1758832238643,-480.0,0.00019184,2]
[387735017,1758832238653,-480.0,0.00019184,2]
[387735018,1758832238663,-108.04465492,0.00019184,2]
[387735077,1758832240148,-324.97025148,0.00019184,2]
[387735087,1758832240205,-46.9850936,0.00019184,2]
[387735089,1758832240215,-672.01,0.00019184,2]
[387735092,1758832240224,-480.0,0.00019184,2]
[387735095,1758832240234,-3427.57,0.00019184,2]
[387735097,1758832240244,-480.0,0.00019184,2]
[387735100,1758832240253,-502.87,0.00019184,2]
[387735103,1758832240262,-480.0,0.00019184,2]
[387735106,1758832240271,-480.0,0.00019184,2]
[387735108,1758832240281,-530.84,0.00019184,2]
[387735111,1758832240290,-480.0,0.00019184,2]
[387735114,1758832240299,-480.0,0.00019184,2]
[387735117,1758832240309,-480.0,0.00019184,2]
[387735120,1758832240319,-745.58,0.00019184,2]
[387735122,1758832240328,-994.11,0.00019184,2]
[387735125,1758832240339,-480.0,0.00019184,2]
[387735128,1758832240348,-480.0,0.00019184,2]
[387735130,1758832240358,-480.0,0.00019184,2]
[387735133,1758832240367,-480.0,0.00019184,2]
[387735135,1758832240378,-480.0,0.00019184,2]
[387735138,1758832240387,-480.0,0.00019184,2]
[387735140,1758832240397,-480.0,0.00019184,2]
[387735143,1758832240406,-480.0,0.00019184,2]
[387735146,1758832240415,-480.0,0.00019184,2]
[387735149,1758832240425,-480.0,0.00019184,2]
[387735152,1758832240434,-480.0,0.00019184,2]
[387735153,1758832240443,-11.47735446,0.00019184,2]
[387735451,1758832243302,-468.52264554,0.00019184,2]
[387735453,1758832243311,-94.68874831,0.00019184,2]
[387735455,1758832243323,-385.31125169,0.00019184,2]
[387735457,1758832243332,-331.10332801,0.00019184,2]
[387735459,1758832243343,-522.06337017,0.00019184,2]
[387735461,1758832243352,-480.0,0.00019184,2]
[387735463,1758832243362,-279.4031965,0.00019184,2]
[387735466,1758832243372,-480.0,0.00019184,2]
[387735469,1758832243381,-480.0,0.00019184,2]
[387735472,1758832243390,-480.0,0.00019184,2]
[387735474,1758832243400,-480.0,0.00019184,2]
[387735476,1758832243409,-151.0,0.00019184,2]
[387735478,1758832243418,-151.0,0.00019184,2]
[387735480,1758832243427,-480.0,0.00019184,2]
[387735482,1758832243436,-685.66,0.00019184,2]
[387735484,1758832243445,-480.0,0.00019184,2]
[387735486,1758832243455,-480.0,0.00019184,2]
[387735489,1758832243465,-480.0,0.00019184,2]
[387735491,1758832243475,-480.0,0.00019184,2]
[387735493,1758832243484,-480.0,0.00019184,2]
[387735495,1758832243493,-1105.53,0.00019184,2]
[387735497,1758832243503,-480.0,0.00019184,2]
[387735499,1758832243512,-480.0,0.00019184,2]
[387735501,1758832243522,-480.0,0.00019184,2]
[387735503,1758832243531,-39.20744491,0.00019184,2]
[387735505,1758832243543,-440.79255509,0.00019184,2]
[387735507,1758832243552,-457.20744491,0.00019184,2]
[387735788,1758832246214,-22.79255509,0.00019184,2]
[387735790,1758832246224,-1058.99,0.00019184,2]
[387735792,1758832246233,-89.73744492,0.00019184,2]
[387735796,1758832246270,-390.26255508,0.00019184,2]
[387735798,1758832246280,-480.0,0.00019184,2]
[387735800,1758832246289,-480.0,0.00019184,2]
[387735802,1758832246299,-151.0,0.00019184,2]
[387735804,1758832246308,-480.0,0.00019184,2]
[387735806,1758832246317,-854.43,0.00019184,2]
[387735808,1758832246327,-151.41618362,0.00019184,2]
[387735810,1758832246335,-151.0,0.00019184,2]
[387735812,1758832246347,-523.01,0.00019184,2]
[387735814,1758832246356,-480.0,0.00019184,2]
[387735816,1758832246365,-2077.30332236,0.00019185,2]
[387735818,1758832246377,-480.0,0.00019185,2]
[387735820,1758832246386,-480.0,0.00019185,2]
[387735822,1758832246395,-480.0,0.00019185,2]
[387735824,1758832246405,-480.0,0.00019185,2]
[387735826,1758832246414,-326.71714434,0.00019185,2]
[387735833,1758832246480,-665.63679311,0.00019183,2]
[387736238,1758832477183,3055.69251303,0.0001908,2]
[387736240,1758832562302,302.48582854,0.00018985,2]
[387736242,1758832630781,191.228567,0.00018182,2]
[387736262,1758833329691,-5055.27774442,0.00025,30]
[387736263,1758833329736,-162.43417,0.00027542,60]
[387736264,1758833329771,-162.43417,0.00028128,60]
[387736265,1758833329803,-373.7417978,0.00028384,30]
[387736266,1758833329836,-162.43417,0.00028715,60]
[387736267,1758833329867,-3000.19643535,0.00029,120]
[387736268,1758833329899,-532.6312153,0.00029128,30]
[387736269,1758833329931,-162.43417,0.00029302,60]
[387736270,1758833329963,-317.5465665,0.00029781,30]
[387736271,1758833329993,-162.2602779,0.00029781,30]
[387736272,1758833330022,-323.2658407,0.00029781,30]
[387736273,1758833330053,-296.7745048,0.00029781,30]
[387736274,1758833330085,-162.2602779,0.00029781,30]
[387736275,1758833330116,-296.7745048,0.00029781,30]
[387736276,1758833330145,-585.9311719,0.00029781,30]
[387736277,1758833330295,-200.0,0.0002979,120]
[387736278,1758833330327,-6390.0,0.00029889,60]
[387736279,1758833330352,-3114.0,0.0003,120]
[387736280,1758833330376,-160.0,0.0003,30]
[387736281,1758833330400,-233.66602051,0.0003,30]
[387736282,1758833330423,-417.15472785,0.0003,30]
[387736283,1758833330447,-160.0,0.0003,30]
[387736284,1758833330469,-160.0,0.0003,30]
[387736285,1758833330493,-160.0,0.0003,30]
[387736286,1758833330516,-160.0,0.0003,30]
[387736287,1758833330540,-160.0,0.0003,30]
[387736288,1758833330565,-25000.0,0.0003,60]
[387736289,1758833330589,-309.6101117,0.00030087,30]
[387736290,1758833330613,-166.0334502,0.00030087,30]
[387736291,1758833330637,-270.4541899,0.00030087,30]
[387736292,1758833330661,-586.2552204,0.00030603,30]
[387736293,1758833330684,-586.2552204,0.00030603,30]
[387736294,1758833330707,-586.2552204,0.00030603,30]
[387736295,1758833330730,-586.2552204,0.00030603,30]
[387736296,1758833330755,-1232.41346989,0.00032,120]
[387736297,1758833330778,-183.04,0.00032,120]
[387736298,1758833330801,-716.82456778,0.00032,120]
[387736299,1758833330825,-690.72402878,0.00032,120]
[387736300,1758833330850,-188.04628911,0.00032,120]
[387736301,1758833330873,-162.75628058,0.00032,120]
[387736302,1758833330897,-6273.37107202,0.00032,120]
[387736303,1758833330920,-183.22441895,0.00032,120]
[387736304,1758833330944,-160.0,0.00032,120]
[387736305,1758833330968,-233.66602051,0.00032,120]
[387736306,1758833330990,-160.0,0.00032,120]
[387736307,1758833331014,-160.0,0.00032,120]
[387736308,1758833331042,-407.22053807,0.00032,120]
[387736309,1758833331066,-160.0,0.00032,120]
[387736310,1758833331090,-160.0,0.00032,120]
[387736311,1758833331113,-160.0,0.00032,120]
[387736312,1758833331138,-160.0,0.00032,120]
[387736313,1758833331162,-1232.41346989,0.000323,120]
[387736314,1758833331185,-183.04,0.000323,120]
[387736315,1758833331208,-716.82456778,0.000323,120]
[387736316,1758833331231,-690.72402878,0.000323,120]
[387736317,1758833331255,-188.04628911,0.000323,120]
[387736318,1758833331279,-162.75628058,0.000323,120]
[387736319,1758833331302,-6273.37107202,0.000323,120]
[387736320,1758833331328,-183.22441895,0.000323,120]
[387736321,1758833331351,-1232.41346989,0.000326,120]
[387736322,1758833331374,-183.04,0.000326,120]
[387736323,1758833331398,-716.82456778,0.000326,120]
[387736324,1758833331420,-690.72402878,0.000326,120]
[387736325,1758833331443,-162.75628058,0.000326,120]
[387736326,1758833331467,-6273.37107202,0.000326,120]
[387736327,1758833331489,-183.22441895,0.000326,120]
[387736328,1758833331512,-10000.0,0.00032876,120]
[387736329,1758833331535,-1882.3761135,0.00032876,120]
[387736330,1758833331559,-500.0,0.00032876,120]
[387736331,1758833331585,-185.97,0.0003288,30]
[387736332,1758833331608,-216.97504219,0.0003288,30]
[387736333,1758833331631,-216.97,0.0003288,30]
[387736334,1758833331654,-154.30926728,0.0003288,30]
[387736335,1758833331678,-154.3,0.0003288,30]
[387736336,1758833331701,-180.0274785,0.0003288,30]
[387736337,1758833331725,-180.0274785,0.0003288,30]
[387736338,1758833331749,-180.0274785,0.0003288,30]
[387736339,1758833331772,-180.02,0.0003288,30]
[387736340,1758833331797,-1232.41346989,0.00033,120]
[387736341,1758833331903,-183.04,0.00033,120]
[387736342,1758833331928,-716.82456778,0.00033,120]
[387736343,1758833331952,-690.72402878,0.00033,120]
[387736344,1758833331976,-162.75628058,0.00033,120]
[387736345,1758833332000,-6273.37107202,0.00033,120]
[387736346,1758833332030,-233.66602051,0.00033,120]
[387736347,1758833332063,-417.15472785,0.00033,120]
[387736348,1758833332087,-160.0,0.00033,120]
[387736349,1758833332112,-160.0,0.00033,120]
[387736350,1758833332137,-185.08693842,0.000332,117]
[387736351,1758833332161,-185.08693842,0.000332,117]
[387736352,1758833332185,-185.08693842,0.000332,117]
[387736353,1758833332209,-1232.41346989,0.000333,120]
[387736354,1758833332232,-183.04,0.000333,120]
[387736355,1758833332255,-716.82456778,0.000333,120]
[387736356,1758833332279,-690.72402878,0.000333,120]
[387736357,1758833332304,-162.75628058,0.000333,120]
[387736358,1758833332331,-6273.37107202,0.000333,120]
[387736359,1758833332356,-6273.37107202,0.000336,120]
[387736360,1758833332381,-500.0,0.00033698,120]
[387736361,1758833332408,-586.2552204,0.00033781,30]
[387736362,1758833332431,-586.2552204,0.00033781,30]
[387736363,1758833332454,-200.0,0.000338,36]
[387736364,1758833332478,-6273.37107202,0.00034,120]
[387736365,1758833332501,-6273.37107202,0.000343,120]
[387736366,1758833332525,-500.0,0.0003452,120]
[387736367,1758833332548,-586.2552204,0.00034603,30]
[387736368,1758833332572,-586.2552204,0.00034603,30]
[387736369,1758833332595,-586.2552204,0.00034603,30]
[387736370,1758833332618,-586.2552204,0.00034603,30]
[387736371,1758833332641,-586.2552204,0.00034603,30]
[387736372,1758833332665,-586.2552204,0.00034603,30]
[387736373,1758833332687,-586.2552204,0.00034603,30]
[387736374,1758833332710,-586.2552204,0.00034603,30]
[387736375,1758833332735,-6273.37107202,0.000347,120]
[387736376,1758833332759,-390.4368942,0.00034909,30]
[387736377,1758833332783,-390.4368942,0.00034909,30]
[387736378,1758833332809,-6273.37107202,0.00035,120]
[387736379,1758833332833,-233.66602051,0.00035,120]
[387736380,1758833332857,-1518.22814664,0.00035,60]
[387736381,1758833332882,-500.0,0.00035342,120]
[387736382,1758833332906,-2000.0,0.000355,120]
[387736383,1758833332929,-190.0,0.00035538,30]
[387736384,1758833332953,-294.4296019,0.00035867,30]
[387736385,1758833332977,-390.4368942,0.00035868,30]
[387736386,1758833332999,-390.4368942,0.00035868,30]
[387736387,1758833333024,-390.4368942,0.00035868,30]
[387736388,1758833333050,-390.4368942,0.00035868,30]
[387736389,1758833333075,-390.4368942,0.00035868,30]
[387736390,1758833333100,-390.4368942,0.00035868,30]
[387736391,1758833333125,-390.4368942,0.00035868,30]
[387736392,1758833333150,-390.4368942,0.00035868,30]
[387736393,1758833333174,-390.4368942,0.00035868,30]
[387736394,1758833333207,-390.4368942,0.00035868,30]
[387736395,1758833333231,-390.4368942,0.00035868,30]
[387736396,1758833333255,-390.4368942,0.00035868,30]
[387736397,1758833333279,-390.4368942,0.00035868,30]
[387736398,1758833333304,-390.4368942,0.00035868,30]
[387736399,1758833333329,-390.4368942,0.00035868,30]
[387736400,1758833333352,-219.0,0.00036006,30]
[387736401,1758833333378,-500.0,0.00036164,120]
[387736402,1758833333403,-219.0,0.00036473,30]
[387736403,1758833333426,-1506.05633969,0.000369,120]
[387736404,1758833333449,-219.0,0.00036941,30]
[387736405,1758833333473,-500.0,0.00036986,120]
[387736406,1758833333498,-606.80969792,0.00037,120]
[387736407,1758833333522,-219.0,0.00037408,30]
[387736408,1758833333546,-500.0,0.00037808,120]
[387736409,1758833333571,-219.0,0.00037875,30]
[387736410,1758833333604,-39321.84542688,0.00038,120]
[387736411,1758833333630,-315.06986427,0.00038,30]
[387736412,1758833333654,-308.86733896,0.00038,120]
[387736413,1758833333680,-1493.26313749,0.00038122,30]
[387736414,1758833333705,-219.0,0.00038343,30]
[387736415,1758833333732,-500.0,0.0003863,120]
[387736416,1758833333759,-219.0,0.0003881,30]
[387736417,1758833333784,-101053.4924628,0.000389,120]
[387736418,1758833333903,-300.0,0.0003899,120]
[387736419,1758833333928,-9920.22267116,0.00039,120]
[387736420,1758833333954,-268.12776803,0.00039068,30]
[387736421,1758833333979,-357.99,0.00039178,30]
[387736422,1758833334005,-1493.26313749,0.00039194,32]
[387736423,1758833334030,-268.12776803,0.0003926,30]
[387736424,1758833334059,-219.0,0.00039278,30]
[387736425,1758833334086,-500.0,0.00039452,120]
[387736426,1758833334112,-268.12776803,0.00039452,30]
[387736427,1758833334139,-268.12776803,0.00039644,30]
[387736428,1758833334165,-202785.149817,0.000397,120]
[387736429,1758833334190,-219.0,0.00039745,30]
[387736430,1758833334214,-268.12776803,0.00039836,30]
[387736431,1758833334238,-357.99,0.00039863,31]
[387736432,1758833334263,-2366.0,0.0003989,62]
[387736433,1758833334290,-54568.0,0.0004,120]
[387736434,1758833334327,-500.0,0.0004,120]
[387736435,1758833334351,-504.21070384,0.0004,30]
[387736436,1758833334375,-254.0,0.0004,120]
[387736437,1758833334400,-417.15472785,0.0004,120]
[387736438,1758833334425,-230.0,0.0004,120]
[387736439,1758833334447,-233.66602051,0.0004,30]
[387736440,1758833334475,-2000.0,0.0004,120]
[387736441,1758833334498,-268.12776803,0.00040027,30]
[387736442,1758833334523,-5000.0,0.00040093,73]
[387736443,1758833334548,-5000.0,0.00040093,70]
[387736444,1758833334572,-5000.0,0.00040093,70]
[387736445,1758833334596,-219.0,0.00040212,30]
[387736446,1758833334621,-268.12776803,0.00040219,30]
[387736447,1758833334645,-1493.26313749,0.00040265,35]
[387736448,1758833334670,-500.0,0.00040273,120]
[387736449,1758833334694,-268.12776803,0.00040384,30]
[387736450,1758833334718,-357.99,0.00040547,32]
[387736451,1758833334742,-268.12776803,0.00040575,30]
[387736452,1758833334766,-317.3474117,0.00040603,30]
[387736453,1758833334789,-219.0,0.0004068,30]
[387736454,1758833334815,-268.12776803,0.00040767,30]
[387736455,1758833334838,-268.12776803,0.00040959,30]
[387736456,1758833334862,-1171.04039873,0.00041,120]
[387736457,1758833334887,-500.0,0.00041095,120]
[387736458,1758833334912,-3700.72,0.00041095,120]
[387736459,1758833334936,-219.0,0.00041147,120]
[387736460,1758833334960,-268.12776803,0.00041151,30]
[387736461,1758833334984,-200.0,0.00041198,120]
[387736462,1758833335008,-357.99,0.00041232,33]
[387736463,1758833335033,-1493.26313749,0.00041337,37]
[387736464,1758833335058,-900.0,0.00041369,60]
[387736465,1758833335083,-3700.72,0.00041369,120]
[387736466,1758833335108,-536.1473043,0.00041425,30]
[387736467,1758833335132,-219.0,0.00041615,120]
[387736468,1758833335157,-3700.72,0.00041643,120]
[387736469,1758833335181,-500.0,0.00041643,30]
[387736470,1758833335205,-900.0,0.00041917,60]
[387736471,1758833335229,-357.99,0.00041917,34]
[387736472,1758833335253,-500.0,0.00041917,120]
[387736473,1758833335277,-3700.72,0.00041917,120]
[387736474,1758833335303,-350.0,0.00041986,60]
[387736475,1758833335330,-151.0,0.00041986,60]
[387736476,1758833335355,-500.0,0.00041986,60]
[387736477,1758833335379,-355.24771238,0.00042,120]
[387736478,1758833335403,-1081.9,0.00042,30]
[387736479,1758833335427,-1081.9,0.00042,30]
[387736480,1758833335449,-1251.30497572,0.00042,30]
[387736481,1758833335472,-219.0,0.00042082,120]
[387736482,1758833335497,-3700.72,0.00042191,120]
[387736483,1758833335523,-350.0,0.00042346,120]
[387736484,1758833335546,-151.0,0.00042346,120]
[387736485,1758833335573,-250.0,0.00042346,120]
[387736486,1758833335599,-500.0,0.00042346,120]
[387736487,1758833335622,-1500.0,0.000424,39]
[387736488,1758833335646,-350.0,0.00042408,39]
[387736489,1758833335670,-151.0,0.00042408,39]
[387736490,1758833335693,-250.0,0.00042408,39]
[387736491,1758833335718,-500.0,0.00042408,39]
[387736492,1758833335825,-1493.26313749,0.00042409,39]
[387736493,1758833335851,-200.0,0.00042439,30]
[387736494,1758833335877,-350.0,0.00042439,30]
[387736495,1758833335902,-151.0,0.00042439,30]
[387736496,1758833335926,-250.0,0.00042439,30]
[387736497,1758833335952,-500.0,0.00042439,30]
[387736498,1758833335976,-500000.0,0.0004244,30]
[387736499,1758833336001,-900.0,0.00042465,60]
[387736500,1758833336026,-3700.72,0.00042465,120]
[387736501,1758833336050,-220.15,0.000426,120]
[387736502,1758833336074,-357.99,0.00042602,35]
[387736503,1758833336100,-500.0,0.00042739,120]
[387736504,1758833336125,-3700.72,0.00042739,120]
[387736505,1758833336150,-3700.72,0.00043013,120]
[387736506,1758833336175,-357.99,0.00043287,36]
[387736507,1758833336201,-3700.72,0.00043287,120]
[387736508,1758833336227,-832373.27937781,0.0004344,30]
[387736509,1758833340339,-183.12771675,0.00032,120]
[387736510,1758833340373,-167626.72062219,0.0004344,30]
[387736511,1758833340400,-200.0,0.0004348,42]
[387736512,1758833340426,-350.0,0.0004348,42]
[387736513,1758833340451,-151.0,0.0004348,42]
[387736514,1758833340475,-250.0,0.0004348,42]
[387736515,1758833340502,-500.0,0.0004348,42]
[387736516,1758833340527,-1493.26313749,0.00043481,42]
[387736517,1758833340551,-215.54253999,0.000435,120]
[387736518,1758833340576,-900.0,0.00043561,60]
[387736519,1758833340601,-500.0,0.00043561,120]
[387736520,1758833340626,-3700.72,0.00043561,120]
[387736521,1758833340650,-151.0,0.00043799,90]
[387736522,1758833340760,-228.10387266,0.00043799,90]
[387736523,1758833340786,-200.0,0.00043799,90]
[387736524,1758833340811,-350.0,0.00043799,90]
[387736525,1758833340837,-151.0,0.00043799,90]
[387736526,1758833340861,-250.0,0.00043799,90]
[387736527,1758833340886,-500.0,0.00043799,90]
[387736528,1758833340911,-1000.0,0.000438,90]
[387736529,1758833340935,-1000.0,0.000438,90]
[387736530,1758833340960,-209.21803609,0.000438,120]
[387736531,1758833340984,-151.0,0.00043809,60]
[387736532,1758833341007,-162.380719,0.00043809,60]
[387736533,1758833341034,-200.0,0.00043809,60]
[387736534,1758833341061,-350.0,0.00043809,60]
[387736535,1758833341087,-151.0,0.00043809,60]
[387736536,1758833341112,-250.0,0.00043809,60]
[387736537,1758833341138,-500.0,0.00043809,60]
[387736538,1758833341163,-1000.0,0.0004383,60]
[387736539,1758833341187,-1000.0,0.00043834,120]
[387736540,1758833341212,-151.0,0.00043834,30]
[387736541,1758833341236,-151.0,0.00043834,30]
[387736542,1758833341261,-17300.0,0.00043834,30]
[387736543,1758833341286,-506.24555274,0.00043834,30]
[387736544,1758833341311,-151.0,0.00043834,120]
[387736545,1758833341339,-156.587,0.00043834,120]
[387736546,1758833341363,-2130.93402607,0.00043834,120]
[387736547,1758833341390,-200.0,0.00043834,30]
[387736548,1758833341419,-200.0,0.00043834,120]
[387736549,1758833341443,-350.0,0.00043834,30]
[387736550,1758833341466,-151.00896658,0.00043834,30]
[387736551,1758833341491,-350.0,0.00043834,120]
[387736552,1758833341515,-151.0,0.00043834,30]
[387736553,1758833341538,-151.0,0.00043834,120]
[387736554,1758833341562,-250.0,0.00043834,30]
[387736555,1758833341586,-250.0,0.00043834,120]
[387736556,1758833341611,-500.0,0.00043834,30]
[387736557,1758833341636,-500.0,0.00043834,120]
[387736558,1758833341659,-205.67214787,0.00043834,30]
[387736559,1758833341684,-500.0,0.00043835,30]
[387736560,1758833341708,-200.0,0.00043835,120]
[387736561,1758833341731,-200.0,0.00043835,120]
[387736562,1758833341755,-3700.72,0.00043835,120]
[387736563,1758833341780,-32409.89361694,0.000439,120]
[387736564,1758833341803,-358.05758443,0.00043972,37]
[387736565,1758833341827,-4347.29910656,0.00044,120]
[387736566,1758833341852,-300.0,0.00044,120]
[387736567,1758833341876,-2000.0,0.00044,120]
[387736568,1758833341900,-30000.0,0.00044,30]
[387736569,1758833341925,-7000.0,0.00044,120]
[387736570,1758833341949,-5029.25,0.00044,120]
[387736571,1758833341973,-165.48,0.00044061,30]
[387736572,1758833341998,-3700.72,0.00044109,120]
[387736573,1758833342021,-5000.0,0.00044139,95]
[387736574,1758833342045,-5000.0,0.00044139,91]
[387736575,1758833342070,-182.82,0.00044143,120]
[387736576,1758833342095,-500.0,0.00044383,120]
[387736577,1758833342120,-3700.72,0.00044383,120]
[387736578,1758833342144,-1894.96779938,0.000444,120]
[387736579,1758833342168,-2373.3313795,0.00044432,72]
[387736580,1758833342192,-322354.85,0.0004444,30]
[387736581,1758833342216,-897491.0,0.0004444,30]
[387736582,1758833342241,-3802.44215281,0.000445,120]
[387736583,1758833342265,-2000.0,0.000445,120]
[387736584,1758833342290,-1493.26313749,0.00044553,44]
[387736585,1758833342316,-900.0,0.00044657,60]
[387736586,1758833342348,-3700.72,0.00044657,120]
[387736587,1758833342371,-1541.32349075,0.00044887,60]
[387736588,1758833342397,-1111.15481543,0.000449,120]
[387736589,1758833342423,-2000.0,0.000449,120]
[387736590,1758833342447,-3700.72,0.00044931,120]
[387736591,1758833342470,-277.47455903,0.00044999,120]
[387736592,1758833342572,-5573.40848347,0.00045,120]
[387736593,1758833342600,-2038.87878795,0.00045,120]